fUST/lending_fUST_20250221
["ID","MTS","AMOUNT","RATE_DAILY","PERIOD"]
[353910283,1740131242666,-355.2534587,0.00014164,2]
[353910284,1740131242686,-355.2534587,0.00014164,2]
[353910285,1740131242706,-355.2534587,0.00014164,2]
[353910286,1740131242726,-355.2534587,0.00014164,2]
[353910287,1740131242746,-355.2534587,0.00014164,2]
[353910288,1740131242766,-816.8096394,0.00014164,2]
[353910289,1740131242786,-500.0,0.00014173,2]
[353910290,1740131242806,-510.21662981,0.00014173,2]
[353910291,1740131242825,-615.38743237,0.00014173,2]
[353910292,1740131242845,-500.0,0.00014173,2]
[353910293,1740131242866,-500.96222818,0.00014173,2]
[353910294,1740131242887,-500.0,0.00014173,2]
[353910295,1740131242906,-500.0,0.00014173,2]
[353910296,1740131242926,-500.0,0.00014173,2]
[353910297,1740131242947,-500.0,0.00014173,2]
[353910298,1740131242969,-1134.75,0.00014191,2]
[353910299,1740131242995,-500.0,0.00014191,2]
[353910300,1740131243017,-522.16,0.00014191,2]
[353910301,1740131243038,-560.55,0.00014191,2]
[353910302,1740131243060,-500.0,0.00014191,2]
[353910303,1740131243082,-500.0,0.00014191,2]
[353910304,1740131243105,-500.0,0.00014191,2]
[353910305,1740131243125,-500.0,0.00014191,2]
[353910306,1740131243145,-500.0,0.00014191,2]
[353910307,1740131243165,-592.11,0.00014191,2]
[353910308,1740131243186,-2144.17,0.00014191,2]
[353910309,1740131243208,-1000.1,0.00014191,2]
[353910310,1740131243231,-500.0,0.00014191,2]
[353910311,1740131243251,-500.0,0.00014191,2]
[353910312,1740131243273,-500.0,0.00014191,2]
[353910313,1740131243294,-500.0,0.00014191,2]
[353910314,1740131243325,-8601.24,0.00014191,2]
[353910315,1740131243356,-572.52,0.00014191,2]
[353910316,1740131243385,-4556.55,0.00014191,2]
[353910317,1740131243415,-500.0,0.00014191,2]
[353910318,1740131243442,-961.3,0.00014191,2]
[353910319,1740131243470,-1191.18,0.00014191,2]
[353910320,1740131243500,-1720.58,0.00014191,2]
[353910321,1740131243528,-586.42,0.00014191,2]
[353910322,1740131243556,-500.0,0.00014191,2]
[353910323,1740131243584,-500.0,0.00014191,2]
[353910324,1740131243614,-500.0,0.00014191,2]
[353910325,1740131243638,-500.0,0.00014191,2]
[353910326,1740131243664,-500.0,0.00014191,2]
[353910327,1740131243691,-1359.04,0.00014191,2]
[353910328,1740131243721,-500.0,0.00014191,2]
[353910329,1740131243749,-195.75000402,0.00014191,2]
[353910330,1740131243778,-500.0,0.00014191,2]
[353910331,1740131243802,-500.0,0.00014191,2]
[353910332,1740131243825,-500.0,0.00014191,2]
[353910333,1740131243854,-894.61,0.00014191,2]
[353910334,1740131243882,-500.0,0.00014191,2]
[353910335,1740131243907,-2662.6,0.00014191,2]
[353910336,1740131243933,-1720.64,0.00014191,2]
[353910337,1740131243957,-500.0,0.00014191,2]
[353910338,1740131243979,-64644.65615804,0.00014199,2]
[353910339,1740131244002,-160.0,0.0001421,3]
[353910340,1740131244025,-1134.75,0.00014273,2]
[353910341,1740131244050,-395.24488847,0.00014273,2]
[353910342,1740131244074,-522.16,0.00014273,2]
[353910343,1740131244098,-560.55,0.00014273,2]
[353910344,1740131244125,-500.0,0.00014273,2]
[353910345,1740131244149,-500.0,0.00014273,2]
[353910346,1740131244174,-500.0,0.00014273,2]
[353910347,1740131244199,-500.0,0.00014273,2]
[353910348,1740131244223,-592.11,0.00014273,2]
[353910349,1740131244248,-2144.17,0.00014273,2]
[353910350,1740131244275,-1000.1,0.00014273,2]
[353910351,1740131244300,-500.0,0.00014273,2]
[353910352,1740131244324,-500.0,0.00014273,2]
[353910353,1740131244349,-500.0,0.00014273,2]
[353910354,1740131244378,-500.0,0.00014273,2]
[353910355,1740131244404,-8601.24,0.00014273,2]
[353910356,1740131244431,-572.52,0.00014273,2]
[353910357,1740131244459,-4556.55,0.00014273,2]
[353910358,1740131244484,-500.0,0.00014273,2]
[353910359,1740131244506,-961.3,0.00014273,2]
[353910360,1740131244529,-1191.18,0.00014273,2]
[353910361,1740131244550,-1720.58,0.00014273,2]
[353910362,1740131244572,-586.42,0.00014273,2]
[353910363,1740131244593,-500.0,0.00014273,2]
[353910364,1740131244614,-500.0,0.00014273,2]
[353910365,1740131244635,-500.0,0.00014273,2]
[353910366,1740131244656,-500.0,0.00014273,2]
[353910367,1740131244805,-1359.04,0.00014273,2]
[353910368,1740131244859,-500.0,0.00014273,2]
[353910369,1740131244881,-500.0,0.00014273,2]
[353910370,1740131244902,-500.0,0.00014273,2]
[353910371,1740131244923,-500.0,0.00014273,2]
[353910372,1740131244946,-894.61,0.00014273,2]
[353910373,1740131244967,-500.0,0.00014273,2]
[353910374,1740131244989,-2662.6,0.00014273,2]
[353910375,1740131245009,-1720.64,0.00014273,2]
[353910376,1740131245030,-500.0,0.00014273,2]
[353910377,1740131245050,-500.0,0.00014328,2]
[353910378,1740131245071,-160.760428,0.00014341,7]
[353910379,1740131245091,-1134.75,0.00014356,2]
[353910380,1740131245114,-522.16,0.00014356,2]
[353910381,1740131245134,-560.55,0.00014356,2]
[353910382,1740131245154,-500.0,0.00014356,2]
[353910383,1740131245175,-500.0,0.00014356,2]
[353910384,1740131245195,-500.0,0.00014356,2]
[353910385,1740131245218,-592.11,0.00014356,2]
[353910386,1740131245239,-2144.17,0.00014356,2]
[353910387,1740131245261,-1000.1,0.00014356,2]
[353910388,1740131245282,-500.0,0.00014356,2]
[353910389,1740131245305,-500.0,0.00014356,2]
[353910390,1740131245328,-500.0,0.00014356,2]
[353910391,1740131245349,-186.61176406,0.00014356,2]
[353910392,1740131245375,-8601.24,0.00014356,2]
[353910393,1740131245402,-572.52,0.00014356,2]
[353910394,1740131245424,-4556.55,0.00014356,2]
[353910395,1740131245448,-500.0,0.00014356,2]
[353910396,1740131245469,-961.3,0.00014356,2]
[353910397,1740131245491,-1191.18,0.00014356,2]
[353910398,1740131245513,-1720.58,0.00014356,2]
[353910399,1740131245534,-586.42,0.00014356,2]
[353910400,1740131245555,-500.0,0.00014356,2]
[353910401,1740131245576,-500.0,0.00014356,2]
[353910402,1740131245596,-500.0,0.00014356,2]
[353910403,1740131245617,-500.0,0.00014356,2]
[353910404,1740131245638,-1359.04,0.00014356,2]
[353910405,1740131245658,-500.0,0.00014356,2]
[353910406,1740131245679,-500.0,0.00014356,2]
[353910407,1740131245699,-500.0,0.00014356,2]
[353910408,1740131245720,-894.61,0.00014356,2]
[353910409,1740131245740,-500.0,0.00014356,2]
[353910410,1740131245762,-2662.6,0.00014356,2]
[353910411,1740131245782,-1720.64,0.00014356,2]
[353910412,1740131245803,-500.0,0.00014356,2]
[353910413,1740131245832,-1000.0,0.00014357,2]
[353910414,1740131245854,-1000.0,0.00014394,2]
[353910415,1740131245874,-623.0,0.000144,2]
[353910416,1740131245894,-153.0,0.000144,2]
[353910417,1740131245915,-557.1188801,0.000144,2]
[353910418,1740131245934,-154.7783581,0.000144,2]
[353910419,1740131245953,-1654.4562888,0.00014405,2]
[353910420,1740131245974,-420.0,0.0001441,2]
[353910421,1740131245993,-3582.30890312,0.0001443,2]
[353910422,1740131246012,-1134.75,0.00014438,2]
[353910423,1740131246036,-522.16,0.00014438,2]
[353910424,1740131246057,-560.55,0.00014438,2]
[353910425,1740131246078,-500.0,0.00014438,2]
[353910426,1740131246098,-500.0,0.00014438,2]
[353910427,1740131246119,-500.0,0.00014438,2]
[353910428,1740131246139,-592.11,0.00014438,2]
[353910429,1740131246160,-2144.17,0.00014438,2]
[353910430,1740131246182,-1000.1,0.00014438,2]
[353910431,1740131246203,-500.0,0.00014438,2]
[353910432,1740131246226,-500.0,0.00014438,2]
[353910433,1740131246248,-500.0,0.00014438,2]
[353910434,1740131246268,-8601.24,0.00014438,2]
[353910435,1740131246290,-572.52,0.00014438,2]
[353910436,1740131246311,-4556.55,0.00014438,2]
[353910437,1740131246332,-500.0,0.00014438,2]
[353910438,1740131246354,-961.3,0.00014438,2]
[353910439,1740131246380,-1191.18,0.00014438,2]
[353910440,1740131246404,-1720.58,0.00014438,2]
[353910441,1740131246426,-586.42,0.00014438,2]
[353910442,1740131246451,-500.0,0.00014438,2]
[353910443,1740131246473,-500.0,0.00014438,2]
[353910444,1740131246496,-500.0,0.00014438,2]
[353910445,1740131246517,-500.0,0.00014438,2]
[353910446,1740131246539,-1359.04,0.00014438,2]
[353910447,1740131246562,-500.0,0.00014438,2]
[353910448,1740131246585,-500.0,0.00014438,2]
[353910449,1740131246607,-500.0,0.00014438,2]
[353910450,1740131246630,-894.61,0.00014438,2]
[353910451,1740131246651,-500.0,0.00014438,2]
[353910452,1740131246673,-2662.6,0.00014438,2]
[353910453,1740131246694,-1720.64,0.00014438,2]
[353910454,1740131246715,-500.0,0.00014438,2]
[353910455,1740131246736,-396.0,0.00014444,2]
[353910456,1740131246755,-414.883,0.00014444,2]
[353910457,1740131246775,-150.605,0.00014444,2]
[353910458,1740131246795,-538.0,0.00014444,2]
[353910459,1740131246821,-1969.0,0.00014444,2]
[353910460,1740131246843,-160.760428,0.00014504,6]
[353910461,1740131246864,-1134.75,0.0001452,2]
[353910462,1740131246885,-522.16,0.0001452,2]
[353910463,1740131246906,-560.55,0.0001452,2]
[353910464,1740131246929,-500.0,0.0001452,2]
[353910465,1740131246950,-500.0,0.0001452,2]
[353910466,1740131246972,-500.0,0.0001452,2]
[353910467,1740131246993,-592.11,0.0001452,2]
[353910468,1740131247016,-2144.17,0.0001452,2]
[353910469,1740131247038,-1000.1,0.0001452,2]
[353910470,1740131247059,-500.0,0.0001452,2]
[353910471,1740131247083,-500.0,0.0001452,2]
[353910472,1740131247106,-8601.24,0.0001452,2]
[353910473,1740131247128,-572.52,0.0001452,2]
[353910474,1740131247154,-4556.55,0.0001452,2]
[353910475,1740131247176,-500.0,0.0001452,2]
[353910476,1740131247197,-961.3,0.0001452,2]
[353910477,1740131247221,-1191.18,0.0001452,2]
[353910478,1740131247243,-1720.58,0.0001452,2]
[353910479,1740131247265,-586.42,0.0001452,2]
[353910480,1740131247287,-500.0,0.0001452,2]
[353910481,1740131247310,-500.0,0.0001452,2]
[353910482,1740131247333,-500.0,0.0001452,2]
[353910483,1740131247356,-500.0,0.0001452,2]
[353910484,1740131247383,-1359.04,0.0001452,2]
[353910485,1740131247407,-500.0,0.0001452,2]
[353910486,1740131247430,-500.0,0.0001452,2]
[353910487,1740131247456,-500.0,0.0001452,2]
[353910488,1740131247479,-894.61,0.0001452,2]
[353910489,1740131247500,-500.0,0.0001452,2]
[353910490,1740131247523,-2662.6,0.0001452,2]
[353910491,1740131247545,-1720.64,0.0001452,2]
[353910492,1740131247568,-500.0,0.0001452,2]
[353910493,1740131247588,-2288.0,0.00014579,2]
[353910494,1740131247610,-743.144,0.00014582,2]
[353910495,1740131247632,-160.760428,0.00014582,7]
[353910496,1740131247652,-320.0,0.0001459,2]
[353910497,1740131247672,-166.7440985,0.00014591,2]
[353910498,1740131247692,-199.78,0.000146,2]
[353910499,1740131247712,-155.39101107,0.000146,2]
[353910500,1740131247732,-155.39101107,0.000146,2]
[353910501,1740131247752,-155.39,0.000146,2]
[353910502,1740131247774,-151.0,0.000146,2]
[353910503,1740131247794,-4528.94753789,0.000146,2]
[353910504,1740131247814,-1134.75,0.00014602,2]
[353910505,1740131247835,-522.16,0.00014602,2]
[353910506,1740131247856,-560.55,0.00014602,2]
[353910507,1740131247876,-500.0,0.00014602,2]
[353910508,1740131247898,-500.0,0.00014602,2]
[353910509,1740131248024,-500.0,0.00014602,2]
[353910510,1740131248047,-592.11,0.00014602,2]
[353910511,1740131248068,-2144.17,0.00014602,2]
[353910512,1740131248090,-1000.1,0.00014602,2]
[353910513,1740131248113,-500.0,0.00014602,2]
[353910514,1740131248134,-500.0,0.00014602,2]
[353910515,1740131248156,-8601.24,0.00014602,2]
[353910516,1740131248179,-572.52,0.00014602,2]
[353910517,1740131248209,-4556.55,0.00014602,2]
[353910518,1740131248233,-500.0,0.00014602,2]
[353910519,1740131248255,-961.3,0.00014602,2]
[353910520,1740131248278,-1191.18,0.00014602,2]
[353910521,1740131248299,-1720.58,0.00014602,2]
[353910522,1740131248320,-586.42,0.00014602,2]
[353910523,1740131248342,-500.0,0.00014602,2]
[353910524,1740131248367,-500.0,0.00014602,2]
[353910525,1740131248389,-500.0,0.00014602,2]
[353910526,1740131248411,-500.0,0.00014602,2]
[353910527,1740131248433,-526.07618154,0.00014602,2]
[353910575,1740131436172,-500.0,0.00011588,2]
[353910576,1740131436182,-584.81050534,0.00012,2]
[353910577,1740131436335,-2600.0,0.00012,2]
[353910582,1740131437637,-1472.46580752,0.00012,2]
[353910583,1740131437646,-300.0,0.00013697,2]
[353910584,1740131437655,-500.0,0.00013698,2]
[353910585,1740131437665,-567.37,0.00013698,2]
[353910586,1740131437675,-300.06419248,0.00013698,2]
[353910587,1740131437686,-199.98580752,0.00013698,2]
[353910588,1740131437695,-656.58919248,0.00013698,2]
[353910592,1740131440241,-415.50080752,0.00013698,2]
[353910593,1740131440251,-500.0,0.00013698,2]
[353910594,1740131440260,-500.0,0.00013698,2]
[353910595,1740131440269,-4300.62,0.00013698,2]
[353910596,1740131440278,-753.7,0.00013698,2]
[353910597,1740131440289,-2278.28,0.00013698,2]
[353910598,1740131440298,-500.0,0.00013698,2]
[353910599,1740131440308,-500.0,0.00013698,2]
[353910600,1740131440318,-500.0,0.00013698,2]
[353910601,1740131440327,-206.65158367,0.00013698,2]
[353910602,1740131440336,-500.0,0.00013698,2]
[353910603,1740131440346,-860.29,0.00013698,2]
[353910604,1740131440354,-500.0,0.00013698,2]
[353910605,1740131440364,-500.0,0.00013698,2]
[353910606,1740131440373,-187.12345559,0.00013698,2]
[353910607,1740131440382,-714.23,0.00013698,2]
[353910608,1740131440391,-500.0,0.00013698,2]
[353910609,1740131440400,-626.40893289,0.00013698,2]
[353910610,1740131440411,-500.0,0.00013698,2]
[353910611,1740131440422,-1442.24,0.00013698,2]
[353910612,1740131440432,-166.7440985,0.00013763,2]
[353910613,1740131440442,-500.0,0.0001378,2]
[353910614,1740131440452,-567.37,0.0001378,2]
[353910615,1740131440462,-500.05,0.0001378,2]
[353910616,1740131440473,-1072.09,0.0001378,2]
[353910617,1740131440483,-500.0,0.0001378,2]
[353910618,1740131440496,-500.0,0.0001378,2]
[353910619,1740131440509,-4300.62,0.0001378,2]
[353910620,1740131440521,-753.7,0.0001378,2]
[353910621,1740131440531,-1822.18804183,0.0001378,2]
[353910622,1740131440551,-456.09195817,0.0001378,2]
[353910623,1740131440562,-500.0,0.0001378,2]
[353910624,1740131440573,-500.0,0.0001378,2]
[353910625,1740131440584,-500.0,0.0001378,2]
[353910626,1740131440596,-500.0,0.0001378,2]
[353910627,1740131440607,-860.29,0.0001378,2]
[353910628,1740131440618,-500.0,0.0001378,2]
[353910629,1740131440630,-500.0,0.0001378,2]
[353910630,1740131440640,-714.23,0.0001378,2]
[353910631,1740131440650,-500.0,0.0001378,2]
[353910632,1740131440662,-500.0,0.0001378,2]
[353910633,1740131440672,-1442.24,0.0001378,2]
[353910634,1740131440683,-500.0,0.00013863,2]
[353910635,1740131440694,-567.37,0.00013863,2]
[353910636,1740131440705,-500.05,0.00013863,2]
[353910637,1740131440716,-1072.09,0.00013863,2]
[353910638,1740131440729,-500.0,0.00013863,2]
[353910639,1740131440740,-500.0,0.00013863,2]
[353910640,1740131440750,-4300.62,0.00013863,2]
[353910641,1740131440762,-753.7,0.00013863,2]
[353910642,1740131440773,-2278.28,0.00013863,2]
[353910643,1740131440784,-500.0,0.00013863,2]
[353910644,1740131440796,-500.0,0.00013863,2]
[353910645,1740131440806,-500.0,0.00013863,2]
[353910646,1740131440817,-500.0,0.00013863,2]
[353910647,1740131440833,-860.29,0.00013863,2]
[353910648,1740131440844,-500.0,0.00013863,2]
[353910649,1740131440854,-500.0,0.00013863,2]
[353910650,1740131440865,-714.23,0.00013863,2]
[353910651,1740131440875,-500.0,0.00013863,2]
[353910652,1740131440886,-500.0,0.00013863,2]
[353910653,1740131440897,-1442.24,0.00013863,2]
[353910654,1740131440908,-595.59,0.00013944,2]
[353910655,1740131440919,-500.0,0.00013944,2]
[353910656,1740131440929,-500.0,0.00013944,2]
[353910657,1740131440940,-932.01,0.00013944,2]
[353910658,1740131440951,-500.0,0.00013944,2]
[353910659,1740131440961,-500.0,0.00013945,2]
[353910660,1740131440972,-567.37,0.00013945,2]
[353910661,1740131440983,-500.05,0.00013945,2]
[353910662,1740131440994,-1072.09,0.00013945,2]
[353910663,1740131441005,-500.0,0.00013945,2]
[353910664,1740131441016,-500.0,0.00013945,2]
[353910665,1740131441026,-4300.62,0.00013945,2]
[353910666,1740131441039,-753.7,0.00013945,2]
[353910667,1740131441050,-2278.28,0.00013945,2]
[353910668,1740131441060,-500.0,0.00013945,2]
[353910669,1740131441070,-500.0,0.00013945,2]
[353910670,1740131441080,-500.0,0.00013945,2]
[353910671,1740131441091,-500.0,0.00013945,2]
[353910672,1740131441100,-860.29,0.00013945,2]
[353910673,1740131441110,-500.0,0.00013945,2]
[353910674,1740131441119,-500.0,0.00013945,2]
[353910675,1740131441130,-714.23,0.00013945,2]
[353910676,1740131441140,-500.0,0.00013945,2]
[353910677,1740131441149,-500.0,0.00013945,2]
[353910678,1740131441159,-1442.24,0.00013945,2]
[353910679,1740131441168,-154.7783581,0.00014,2]
[353910680,1740131441177,-595.59,0.00014026,2]
[353910681,1740131441187,-500.0,0.00014026,2]
[353910682,1740131441196,-500.0,0.00014026,2]
[353910683,1740131441206,-932.01,0.00014026,2]
[353910684,1740131441215,-500.0,0.00014026,2]
[353910685,1740131441225,-500.0,0.00014027,2]
[353910686,1740131441234,-567.37,0.00014027,2]
[353910687,1740131441243,-500.05,0.00014027,2]
[353910688,1740131441341,-1072.09,0.00014027,2]
[353910689,1740131441356,-500.0,0.00014027,2]
[353910690,1740131441366,-500.0,0.00014027,2]
[353910691,1740131441376,-4300.62,0.00014027,2]
[353910692,1740131441386,-753.7,0.00014027,2]
[353910693,1740131441395,-2278.28,0.00014027,2]
[353910694,1740131441406,-500.0,0.00014027,2]
[353910695,1740131441418,-500.0,0.00014027,2]
[353910696,1740131441428,-500.0,0.00014027,2]
[353910697,1740131441437,-500.0,0.00014027,2]
[353910698,1740131441446,-860.29,0.00014027,2]
[353910699,1740131441457,-500.0,0.00014027,2]
[353910700,1740131441467,-500.0,0.00014027,2]
[353910701,1740131441476,-714.23,0.00014027,2]
[353910702,1740131441486,-500.0,0.00014027,2]
[353910703,1740131441497,-500.0,0.00014027,2]
[353910704,1740131441506,-1442.24,0.00014027,2]
[353910705,1740131441515,-153.0,0.000141,2]
[353910706,1740131441525,-154.7783581,0.000141,2]
[353910707,1740131441534,-500.0,0.00014109,2]
[353910708,1740131441544,-567.37,0.00014109,2]
[353910709,1740131441553,-500.05,0.00014109,2]
[353910710,1740131441563,-1072.09,0.00014109,2]
[353910711,1740131441572,-500.0,0.00014109,2]
[353910712,1740131441582,-500.0,0.00014109,2]
[353910713,1740131441592,-4300.62,0.00014109,2]
[353910714,1740131441601,-753.7,0.00014109,2]
[353910715,1740131441611,-2278.28,0.00014109,2]
[353910716,1740131441620,-595.59,0.00014109,2]
[353910717,1740131441629,-500.0,0.00014109,2]
[353910718,1740131441639,-500.0,0.00014109,2]
[353910719,1740131441648,-500.0,0.00014109,2]
[353910720,1740131441658,-500.0,0.00014109,2]
[353910721,1740131441667,-500.0,0.00014109,2]
[353910722,1740131441676,-860.29,0.00014109,2]
[353910723,1740131441686,-500.0,0.00014109,2]
[353910724,1740131441695,-500.0,0.00014109,2]
[353910725,1740131441705,-500.0,0.00014109,2]
[353910726,1740131441714,-714.23,0.00014109,2]
[353910727,1740131441723,-500.0,0.00014109,2]
[353910728,1740131441732,-932.01,0.00014109,2]
[353910729,1740131441742,-500.0,0.00014109,2]
[353910730,1740131441751,-500.0,0.00014109,2]
[353910731,1740131441761,-500.0,0.00014182,2]
[353910732,1740131441769,-500.0,0.00014191,2]
[353910733,1740131441778,-567.37,0.00014191,2]
[353910734,1740131441788,-500.05,0.00014191,2]
[353910735,1740131441797,-1072.09,0.00014191,2]
[353910736,1740131441806,-500.0,0.00014191,2]
[353910737,1740131441816,-500.0,0.00014191,2]
[353910738,1740131441824,-4300.62,0.00014191,2]
[353910739,1740131441833,-753.7,0.00014191,2]
[353910740,1740131441843,-2278.28,0.00014191,2]
[353910741,1740131441852,-595.59,0.00014191,2]
[353910742,1740131441861,-500.0,0.00014191,2]
[353910743,1740131441870,-500.0,0.00014191,2]
[353910744,1740131441879,-500.0,0.00014191,2]
[353910745,1740131441888,-500.0,0.00014191,2]
[353910746,1740131441898,-500.0,0.00014191,2]
[353910747,1740131441908,-860.29,0.00014191,2]
[353910748,1740131441917,-500.0,0.00014191,2]
[353910749,1740131441926,-500.0,0.00014191,2]
[353910750,1740131441936,-500.0,0.00014191,2]
[353910751,1740131441945,-714.23,0.00014191,2]
[353910752,1740131441954,-500.0,0.00014191,2]
[353910753,1740131441964,-932.01,0.00014191,2]
[353910754,1740131441973,-500.0,0.00014191,2]
[353910755,1740131441982,-500.0,0.00014191,2]
[353910756,1740131441992,-166.0,0.000142,2]
[353910757,1740131442001,-167.0,0.000142,2]
[353910758,1740131442010,-166.0,0.000142,2]
[353910759,1740131442019,-307.22528661,0.000142,2]
[353910760,1740131442039,-166.0,0.000142,2]
[353910761,1740131442049,-252.0,0.000142,2]
[353910762,1740131442058,-349.0,0.000142,2]
[353910763,1740131442067,-349.0,0.000142,2]
[353910764,1740131442079,-349.0,0.000142,2]
[353910765,1740131442088,-314.0,0.000142,2]
[353910766,1740131442098,-349.0,0.000142,2]
[353910767,1740131442110,-314.0,0.000142,2]
[353910768,1740131442119,-349.0,0.000142,2]
[353910769,1740131442128,-314.0,0.000142,2]
[353910770,1740131442138,-349.0,0.000142,2]
[353910771,1740131442147,-314.0,0.000142,2]
[353910772,1740131442156,-314.0,0.000142,2]
[353910773,1740131442166,-349.0,0.000142,2]
[353910774,1740131442176,-314.0,0.000142,2]
[353910775,1740131442185,-349.0,0.000142,2]
[353910776,1740131442194,-314.0,0.000142,2]
[353910777,1740131442204,-349.0,0.000142,2]
[353910778,1740131442215,-314.0,0.000142,2]
[353910779,1740131442224,-349.0,0.000142,2]
[353910780,1740131442234,-314.0,0.000142,2]
[353910781,1740131442244,-349.0,0.000142,2]
[353910782,1740131442254,-349.0,0.000142,2]
[353910783,1740131442264,-314.0,0.000142,2]
[353910784,1740131442273,-314.0,0.000142,2]
[353910785,1740131442286,-349.0,0.000142,2]
[353910786,1740131442295,-314.0,0.000142,2]
[353910787,1740131442305,-349.0,0.000142,2]
[353910788,1740131442314,-314.0,0.000142,2]
[353910789,1740131442324,-349.0,0.000142,2]
[353910790,1740131442333,-314.0,0.000142,2]
[353910792,1740131442342,-349.0,0.000142,2]
[353910795,1740131442353,-349.0,0.000142,2]
[353910798,1740131442363,-314.0,0.000142,2]
[353910800,1740131442373,-349.0,0.000142,2]
[353910802,1740131442382,-314.0,0.000142,2]
[353910806,1740131442392,-349.0,0.000142,2]
[353910807,1740131442401,-314.0,0.000142,2]
[353910810,1740131442411,-314.0,0.000142,2]
[353910812,1740131442422,-349.0,0.000142,2]
[353910814,1740131442432,-349.0,0.000142,2]
[353910816,1740131442442,-314.0,0.000142,2]
[353910818,1740131442453,-314.0,0.000142,2]
[353910821,1740131442463,-349.0,0.000142,2]
[353910823,1740131442472,-349.0,0.000142,2]
[353910824,1740131442481,-314.0,0.000142,2]
[353910825,1740131442490,-349.0,0.000142,2]
[353910826,1740131442501,-314.0,0.000142,2]
[353910827,1740131442511,-314.0,0.000142,2]
[353910829,1740131442520,-349.0,0.000142,2]
[353910831,1740131442529,-349.0,0.000142,2]
[353910833,1740131442538,-314.0,0.000142,2]
[353910835,1740131442547,-153.0,0.000142,2]
[353910837,1740131442555,-154.7783581,0.000142,2]
[353910839,1740131442564,-500.0,0.00014273,2]
[353910841,1740131442574,-567.37,0.00014273,2]
[353910843,1740131442583,-500.05,0.00014273,2]
[353910845,1740131442592,-1072.09,0.00014273,2]
[353910847,1740131442601,-500.0,0.00014273,2]
[353910849,1740131442610,-500.0,0.00014273,2]
[353910851,1740131442619,-4300.62,0.00014273,2]
[353910853,1740131442629,-753.7,0.00014273,2]
[353910855,1740131442638,-2278.28,0.00014273,2]
[353910857,1740131442647,-595.59,0.00014273,2]
[353910859,1740131442656,-500.0,0.00014273,2]
[353910861,1740131442665,-500.0,0.00014273,2]
[353910863,1740131442675,-500.0,0.00014273,2]
[353910865,1740131442685,-184.61768092,0.00014273,2]
[353910867,1740131442698,-315.38231908,0.00014273,2]
[353910869,1740131442708,-118.74432643,0.00014273,2]
[353910930,1740131443238,-1442.24,0.00014109,2]
[353910932,1740131443248,-1442.24,0.00014191,2]
[353910934,1740131443258,-381.25567357,0.00014273,2]
[353910936,1740131443268,-860.29,0.00014273,2]
[353910938,1740131443278,-500.0,0.00014273,2]
[353910940,1740131443288,-500.0,0.00014273,2]
[353910942,1740131443298,-638.69428875,0.00014273,2]